bitfinex-derivatives/quotes_BTCF0:USTF0_20250609
["timestamp","ask_amount","ask_price","bid_price","bid_amount"]
[1749459276318,0.6276566,105850.0,105840.0,1.55461649]
[1749459276521,0.6276566,105850.0,105840.0,1.40781708]
[1749459276716,0.6276566,105850.0,105840.0,1.40781791]
[1749459278825,0.6276566,105850.0,105840.0,1.65126346]
[1749459279214,0.6276566,105850.0,105840.0,1.79806287]
[1749459279818,0.1978566,105850.0,105840.0,1.79806287]
[1749459280124,0.6276166,105850.0,105840.0,1.76862219]
[1749459281519,0.0676566,105850.0,105840.0,1.53485527]
[1749459281719,0.0044566,105850.0,105840.0,1.76814692]
[1749459281911,0.0044566,105850.0,105840.0,1.91494633]
[1749459281912,0.0040566,105850.0,105840.0,1.91494633]
[1749459282114,0.0044566,105850.0,105840.0,1.91494633]
[1749459283422,0.9574,105880.0,105870.0,0.1888186]
[1749459283626,1.0525,105880.0,105870.0,0.66650206]
[1749459283827,1.0525,105880.0,105870.0,0.76650206]
[1749459284224,0.62314,105880.0,105870.0,0.76650206]
[1749459284421,1.0525,105880.0,105870.0,0.86095306]
[1749459284821,1.0529,105880.0,105870.0,0.86095306]
[1749459285019,1.16938346,105880.0,105870.0,0.86095306]
[1749459285629,1.0525,105880.0,105870.0,0.86095306]
[1749459285834,1.0529,105880.0,105870.0,0.76095306]
[1749459286024,1.0525,105880.0,105870.0,0.76095306]
[1749459286330,1.09094393,105880.0,105870.0,0.86095306]
[1749459286525,1.09054393,105880.0,105870.0,0.86095306]
[1749459286717,1.09094393,105880.0,105870.0,0.86095306]
[1749459287319,1.09094393,105880.0,105870.0,0.89873306]
[1749459287832,1.05286,105880.0,105870.0,0.89873306]
[1749459288629,1.05282,105880.0,105870.0,1.01604489]
[1749459289629,0.5279966,105880.0,105870.0,1.01604489]
[1749459289934,0.5664366,105880.0,105870.0,1.11604489]
[1749459290232,0.5664366,105880.0,105870.0,1.21044489]
[1749459290632,0.5976366,105880.0,105870.0,1.21044489]
[1749459292330,0.1036166,105880.0,105870.0,1.21044489]
[1749459292525,0.5332966,105880.0,105870.0,1.21044489]
[1749459292934,0.5328966,105880.0,105870.0,1.09313306]
[1749459293134,0.5332966,105880.0,105870.0,1.23977285]
[1749459293322,0.1036166,105880.0,105870.0,1.23977285]
[1749459293527,0.5332966,105880.0,105870.0,1.23977285]
[1749459293939,0.0044566,105880.0,105870.0,1.35665631]
[1749459294336,0.0044566,105880.0,105870.0,1.12288939]
[1749459294542,1e-08,105880.0,105870.0,1.12288939]
[1749459294842,0.5599,105890.0,105880.0,0.3888007]
[1749459295037,0.13026,105890.0,105880.0,0.8665455]
[1749459295339,0.005,105900.0,105890.0,0.1887829]
[1749459295545,0.005,105900.0,105890.0,1.07991116]
[1749459295746,0.0054,105900.0,105890.0,0.9630277]
[1749459295940,0.6239,105910.0,105900.0,0.1887651]
[1749459296138,0.6239,105910.0,105900.0,0.66644856]
[1749459296338,0.74078346,105910.0,105900.0,0.66644856]
[1749459296637,0.21238346,105910.0,105900.0,0.76088172]
[1749459296842,0.74118346,105910.0,105900.0,0.76088172]
[1749459297045,0.6243,105910.0,105900.0,0.76088172]
[1749459299251,0.0955,105910.0,105900.0,0.76088172]
[1749459299452,0.5288,105910.0,105900.0,1.05478172]
[1749459299655,0.5926,105910.0,105900.0,1.03473192]
[1749459299950,0.56172,105920.0,105910.0,0.1887472]
[1749459300142,0.62512,105920.0,105910.0,0.76643066]
[1749459300348,0.62512,105920.0,105910.0,0.66643066]
[1749459300541,0.74200346,105920.0,105910.0,0.4000549]
[1749459300742,0.40201286,105920.0,105910.0,0.4000549]
[1749459300949,0.21328346,105920.0,105910.0,0.7608549]
[1749459301146,0.0964,105920.0,105910.0,0.7608549]
[1749459301450,0.62552,105920.0,105910.0,0.97098683]
[1749459301650,0.62552,105920.0,105910.0,1.06488683]
[1749459302146,0.0004,105920.0,105910.0,1.06488683]
[1749459302336,0.42956,105930.0,105920.0,0.3415387]
[1749459302540,0.09912,105930.0,105920.0,1.25525592]
[1749459302745,0.09952,105930.0,105920.0,1.25525592]
[1749459302945,0.09952,105930.0,105920.0,1.34967125]
[1749459303147,0.09952,105930.0,105920.0,1.11590433]
[1749459303346,0.09952,105930.0,105920.0,1.23251767]
[1749459303347,0.0004,105930.0,105920.0,1.23251767]
[1749459303541,0.5966356,105960.0,105940.0,0.0471721]
[1749459303740,0.12992,105950.0,105940.0,0.44696344]
[1749459304047,0.59098,105950.0,105940.0,0.44696344]
[1749459304243,0.0623,105950.0,105940.0,0.54135203]
[1749459304442,0.59138,105950.0,105940.0,0.54135203]
[1749459304647,0.59098,105950.0,105940.0,0.54135203]
[1749459304847,0.59138,105950.0,105940.0,0.54135203]
[1749459305046,0.59098,105950.0,105940.0,0.54135203]
[1749459305240,0.59138,105950.0,105940.0,0.54135203]
[1749459305443,0.779656,105950.0,105940.0,0.54135203]
[1749459305645,0.89622934,105950.0,105940.0,0.09453019]
[1749459305847,1.25742934,105950.0,105940.0,0.1888354]
[1749459306549,1.35182134,105950.0,105940.0,0.1888354]
[1749459306853,1.35182134,105950.0,105940.0,0.0001416]
[1749459307144,1.35182134,105950.0,105940.0,0.1888354]
[1749459310049,1.35182134,105950.0,105940.0,0.0001416]
[1749459310250,1.60182134,105950.0,105940.0,0.0001416]
[1749459310652,1.60182134,105950.0,105940.0,0.1888354]
[1749459311149,1.35182134,105950.0,105940.0,0.0001416]
[1749459311448,1.60182134,105950.0,105940.0,0.0001416]
[1749459312647,1.64034642,105950.0,105940.0,0.0001416]
[1749459313152,0.1887116,105930.0,105920.0,0.3053144]
[1749459313358,1.62284494,105930.0,105920.0,0.3053144]
[1749459313554,1.09428494,105930.0,105920.0,0.3053144]
[1749459313856,1.5704316,105930.0,105920.0,0.3053144]
[1749459314053,1.15848494,105930.0,105920.0,0.3053144]
[1749459314263,1.68704494,105930.0,105920.0,0.3053144]
[1749459314649,1.69727879,105930.0,105920.0,0.3430744]
[1749459315652,1.58066545,105930.0,105920.0,0.3430744]
[1749459315857,1.69727879,105930.0,105920.0,0.3430744]
[1749459317455,1.58066545,105930.0,105920.0,0.3430744]
[1749459317654,1.69727879,105930.0,105920.0,0.3430744]
[1749459320359,1.70133539,105930.0,105920.0,0.3430744]
[1749459322661,1.73979302,105930.0,105920.0,0.3430744]
[1749459322961,2.31161528,105930.0,105920.0,0.06]
[1749459323258,2.31161528,105930.0,105920.0,0.2487295]
[1749459323660,2.31161528,105930.0,105920.0,0.06]
[1749459324262,2.37065462,105930.0,105920.0,0.06]
[1749459324562,2.62065462,105930.0,105920.0,0.06]
[1749459324764,2.62065462,105930.0,105920.0,0.2487295]
[1749459325262,2.37065462,105930.0,105920.0,0.2487295]
[1749459327262,1.84209462,105930.0,105920.0,0.2487295]
[1749459327563,2.31161528,105930.0,105920.0,0.2487295]
[1749459328265,2.0783886,105930.0,105920.0,0.2487295]
[1749459328466,2.31161528,105930.0,105920.0,0.2487295]
[1749459329066,1.78305528,105930.0,105920.0,0.2487295]
[1749459329268,2.31161528,105930.0,105920.0,0.2487295]
[1749459330066,1.78305528,105930.0,105920.0,0.2487295]
[1749459330366,2.31157528,105930.0,105920.0,0.2487295]
[1749459330768,2.31157528,105930.0,105920.0,0.06]
[1749459330962,2.31157528,105930.0,105920.0,0.2487294]
[1749459334260,2.19496194,105930.0,105920.0,0.2487294]
[1749459334467,2.31157528,105930.0,105920.0,0.2487294]
[1749459334762,2.31157528,105930.0,105920.0,0.06]
[1749459335068,2.31157528,105930.0,105920.0,0.2487294]
[1749459335766,2.31157528,105930.0,105920.0,0.06]
[1749459335966,2.31157528,105930.0,105920.0,0.2487294]
[1749459336354,2.37061462,105930.0,105920.0,0.2487294]
[1749459337868,2.37061462,105930.0,105920.0,0.06]
[1749459338567,2.37061462,105930.0,105920.0,0.2487294]
[1749459340662,2.37061462,105930.0,105920.0,0.06]
[1749459340964,2.37061462,105930.0,105920.0,0.2487295]
[1749459342667,2.37061462,105930.0,105920.0,0.06]
[1749459342862,2.37061462,105930.0,105920.0,0.2487294]
[1749459343163,2.37061462,105930.0,105920.0,0.06]
[1749459343457,2.37061462,105930.0,105920.0,0.2487294]
[1749459345268,2.37061462,105930.0,105920.0,0.06]
[1749459345472,2.37061462,105930.0,105920.0,0.2487295]
[1749459345668,2.27620662,105930.0,105920.0,0.06]
[1749459345862,2.27620662,105930.0,105920.0,0.2487295]
[1749459349677,2.36477783,105930.0,105920.0,0.2487295]
[1749459349873,1.51445994,105930.0,105920.0,0.2487295]
[1749459350081,1.97877994,105930.0,105920.0,0.2487295]
[1749459350270,2.09539328,105930.0,105920.0,0.3465295]
[1749459351081,2.09579328,105930.0,105920.0,0.3465295]
[1749459351776,1.56727328,105930.0,105920.0,0.3465295]
[1749459352278,2.09579328,105930.0,105920.0,0.3465295]
[1749459354881,1.56727328,105930.0,105920.0,0.3465295]
[1749459355074,2.09579328,105930.0,105920.0,0.3465295]
[1749459357581,2.12729328,105930.0,105920.0,0.3465295]
[1749459360074,2.15969328,105930.0,105920.0,0.3465295]
[1749459361074,2.15965328,105930.0,105920.0,0.3465295]
[1749459361582,1.79885328,105930.0,105920.0,0.3465295]
[1749459361974,1.82925328,105930.0,105920.0,0.3465295]
[1749459365985,1.82925328,105930.0,105920.0,0.2487295]
[1749459367284,1.94586662,105930.0,105920.0,0.2487295]
[1749459367590,1.82925328,105930.0,105920.0,0.2487295]
[1749459368188,1.94586662,105930.0,105920.0,0.2487295]
[1749459368386,1.94586662,105930.0,105920.0,0.06]
[1749459368690,1.94586662,105930.0,105920.0,0.2487294]
[1749459369292,1.94586662,105930.0,105920.0,0.06]
[1749459369492,1.94586662,105930.0,105920.0,0.2487294]
[1749459370396,1.94586662,105930.0,105920.0,0.06]
[1749459371292,1.90740807,105930.0,105920.0,0.2487294]
[1749459371489,1.94576755,105930.0,105920.0,0.06]
[1749459371890,1.94576755,105930.0,105920.0,0.2487294]
[1749459372090,2.03433876,105930.0,105920.0,0.2487294]
[1749459372394,2.03433876,105930.0,105920.0,0.06]
[1749459372987,2.03433876,105930.0,105910.0,0.1888846]
[1749459372988,0.1887294,105920.0,105910.0,0.1888846]
[1749459373193,0.80180222,105920.0,105910.0,0.1888846]
[1749459375793,0.90088222,105920.0,105910.0,0.1888846]
[1749459379200,0.9009394,105920.0,105910.0,0.1888846]
[1749459380600,1.3291394,105920.0,105910.0,0.1888846]
[1749459381101,1.333196,105920.0,105910.0,0.1888846]
[1749459385105,1.333196,105920.0,105910.0,0.0001416]
[1749459385106,1.44986652,105920.0,105910.0,0.0001416]
[1749459385603,1.62557638,105920.0,105910.0,0.0001416]
[1749459385803,1.50890586,105920.0,105910.0,0.0001416]
[1749459386303,1.59747707,105920.0,105910.0,0.0001416]
[1749459386993,1.50890586,105920.0,105910.0,0.0001416]
[1749459391020,1.59747707,105920.0,105910.0,0.0001416]
[1749459392412,1.49839707,105920.0,105910.0,0.0001416]
[1749459392616,2.02679707,105920.0,105910.0,0.0001416]
[1749459393117,1.49839707,105920.0,105910.0,0.0001416]
[1749459393322,2.02679707,105920.0,105910.0,0.0001416]
[1749459393518,1.93822586,105920.0,105910.0,0.0001416]
[1749459398025,0.3303339,105910.0,105900.0,0.188764]
[1749459398224,0.9922546,105910.0,105900.0,0.188764]
[1749459399623,1.06614677,105910.0,105900.0,0.188764]
[1749459401320,0.94947625,105910.0,105900.0,0.188764]
[1749459401623,0.34820505,105910.0,105900.0,0.78290504]
[1749459401813,0.03835948,105910.0,105900.0,0.84550504]
[1749459402017,0.7171473,105910.0,105900.0,0.84550504]
[1749459402221,0.75590678,105910.0,105900.0,0.84550504]
[1749459402412,0.7171473,105910.0,105900.0,0.84550504]
[1749459402617,0.75643116,105910.0,105900.0,0.84550504]
[1749459402819,0.32707116,105910.0,105900.0,0.84550504]
[1749459403022,0.75643116,105910.0,105900.0,0.84550504]
[1749459403228,0.75643116,105910.0,105900.0,0.728814]
[1749459403425,0.32707116,105910.0,105900.0,0.728814]
[1749459403628,0.75643116,105910.0,105900.0,0.728814]
[1749459405827,0.75643116,105910.0,105900.0,1.025714]
[1749459406020,0.75643116,105910.0,105900.0,0.909064]
[1749459407938,0.75639116,105910.0,105900.0,0.909064]
[1749459410433,0.76044776,105910.0,105900.0,0.909064]
[1749459412531,0.23208776,105910.0,105900.0,0.909064]
[1749459412730,0.76044776,105910.0,105900.0,0.909064]
[1749459414134,0.76044776,105910.0,105900.0,0.941964]
[1749459414432,0.57130046,105910.0,105900.0,0.941964]
[1749459414621,0.57138108,105910.0,105900.0,0.941964]
[1749459414825,0.76012838,105910.0,105900.0,0.941964]
[1749459415229,0.14246108,105910.0,105900.0,1.158614]
[1749459415433,0.57174108,105910.0,105900.0,1.25303824]
[1749459416033,0.57134108,105910.0,105900.0,1.25303824]
[1749459416332,0.5327766,105910.0,105900.0,1.25303824]
[1749459416833,0.5327766,105910.0,105900.0,1.25503824]
[1749459417033,0.5327766,105910.0,105900.0,1.47198304]
[1749459417334,0.5327766,105910.0,105900.0,1.47398304]
[1749459419136,0.1034966,105910.0,105900.0,1.62062283]
[1749459419437,0.5327766,105910.0,105900.0,1.62062283]
[1749459420924,0.5327766,105910.0,105900.0,1.47398304]
[1749459422238,0.5327766,105910.0,105900.0,1.17708304]
[1749459422427,0.1034966,105910.0,105900.0,1.17708304]
[1749459422631,0.5327366,105910.0,105900.0,1.17708304]
[1749459422935,0.5327366,105910.0,105900.0,1.27150704]
[1749459423334,1e-07,105910.0,105900.0,1.75475091]
[1749459423529,1e-07,105910.0,105900.0,2.2136859]
[1749459423736,0.52824,105930.0,105920.0,0.1887295]
[1749459423929,0.52824,105930.0,105920.0,1.46058465]
[1749459424136,0.52824,105930.0,105920.0,1.55738465]
[1749459424441,0.52824,105930.0,105920.0,1.65180889]
[1749459424937,0.52864,105930.0,105920.0,1.65180889]
[1749459425342,0.52864,105930.0,105920.0,1.53515476]
[1749459425638,0.0994,105930.0,105920.0,1.62956276]
[1749459425833,0.52829934,105940.0,105930.0,0.1887116]
[1749459426038,0.52829934,105940.0,105930.0,0.92832005]
[1749459426337,0.52869934,105940.0,105930.0,1.25632107]
[1749459426639,0.52869934,105940.0,105930.0,1.35072748]
[1749459427633,0.52869934,105940.0,105930.0,1.23373491]
[1749459427839,0.52869934,105940.0,105930.0,1.37997562]
[1749459428139,0.52869934,105940.0,105930.0,1.4965998]
[1749459428332,0.52869934,105940.0,105930.0,1.35035909]
[1749459428638,0.52865934,105940.0,105930.0,1.35035909]
[1749459429140,4e-08,105940.0,105930.0,1.48373491]
[1749459429342,4e-08,105940.0,105930.0,1.62997562]
[1749459429535,0.52812,105950.0,105940.0,0.1886938]
[1749459429736,0.52812,105950.0,105940.0,0.9728718]
[1749459430144,0.52812,105950.0,105940.0,1.0672693]
[1749459430333,0.52812,105950.0,105940.0,1.14426304]
[1749459430533,0.52852,105950.0,105940.0,1.14426304]
[1749459431839,0.52848,105950.0,105940.0,1.14626304]
[1749459432237,0.52848,105950.0,105940.0,1.14826304]
[1749459435246,0.717156,105950.0,105940.0,1.02188504]
[1749459435452,0.62418,105950.0,105940.0,0.96449975]
[1749459436447,0.8128559,105950.0,105940.0,0.8478913]
[1749459436751,0.8128559,105950.0,105940.0,0.6478913]
[1749459436752,0.8128159,105950.0,105940.0,0.6478913]
[1749459437451,0.62414,105950.0,105940.0,0.76449975]
[1749459438149,0.62414,105950.0,105940.0,0.86449975]
[1749459438551,0.62414,105950.0,105940.0,0.87444606]
[1749459439945,0.6281966,105950.0,105940.0,0.86449975]
[1749459442955,0.6281966,105950.0,105940.0,0.87426871]
[1749459445859,0.0359566,105950.0,105940.0,0.87426871]
[1749459446050,0.5324166,105950.0,105940.0,0.97426871]
[1749459446249,0.5324166,105950.0,105940.0,1.03906871]
[1749459446450,0.5320166,105950.0,105940.0,1.03906871]
[1749459446651,0.5940166,105950.0,105940.0,1.03906871]
[1749459447158,0.0660566,105950.0,105940.0,0.97426871]
[1749459447361,0.5940166,105950.0,105940.0,0.97426871]
[1749459447858,0.0660566,105950.0,105940.0,0.97426871]
[1749459448061,0.5940166,105950.0,105940.0,0.97426871]
[1749459448859,0.0660566,105950.0,105940.0,0.97426871]
[1749459449360,0.5940166,105950.0,105940.0,1.09081441]
[1749459451060,0.5936166,105950.0,105940.0,1.12221441]
[1749459451266,0.5940166,105950.0,105940.0,1.15261441]
[1749459451449,0.0660566,105950.0,105940.0,1.15261441]
[1749459451647,0.5323766,105950.0,105940.0,1.15261441]
[1749459452355,0.5323766,105950.0,105940.0,1.15873441]
[1749459452564,0.5323766,105950.0,105940.0,0.79793441]
[1749459452860,0.5323766,105950.0,105940.0,1.51953441]
[1749459454357,0.5323766,105950.0,105940.0,1.66577512]
[1749459455162,0.5323766,105950.0,105940.0,1.54922942]
[1749459458563,0.5962766,105950.0,105940.0,1.54922942]
[1749459459758,0.5962766,105950.0,105940.0,1.26105201]
[1749459460066,0.5962766,105950.0,105940.0,1.13187986]
[1749459461369,0.5962766,105950.0,105940.0,1.16962986]
[1749459462467,0.7849537,105950.0,105940.0,1.16962986]
[1749459462766,0.5962766,105950.0,105940.0,1.19880201]
[1749459463967,0.5962766,105950.0,105940.0,1.31541046]
[1749459464169,0.6268766,105950.0,105940.0,1.31541046]
[1749459464570,0.6268766,105950.0,105940.0,1.19880201]
[1749459466381,0.93216215,105950.0,105940.0,1.19880201]
[1749459466566,0.97224394,105950.0,105940.0,0.83800201]
[1749459466872,0.97224394,105950.0,105940.0,0.5973638]
[1749459467565,0.97224394,105950.0,105940.0,0.2365638]
[1749459468774,0.44432394,105950.0,105940.0,0.2365638]
[1749459468964,0.85555549,105950.0,105940.0,0.2365638]
[1749459469565,0.85555549,105950.0,105940.0,0.35366664]
[1749459469566,0.8154737,105950.0,105940.0,0.35366664]
[1749459471774,0.1033766,105950.0,105940.0,1.12546368]
[1749459472074,0.5318966,105950.0,105940.0,1.15806368]
[1749459472269,0.0040566,105950.0,105940.0,1.22266368]
[1749459472574,0.5318966,105950.0,105940.0,1.25180155]
[1749459472777,0.5322966,105950.0,105940.0,1.25180155]
[1749459472967,0.0044566,105950.0,105940.0,1.25180155]
[1749459473169,0.5322966,105950.0,105940.0,1.25180155]
[1749459479078,0.0044566,105950.0,105940.0,1.25180155]
[1749459479281,0.5322966,105950.0,105940.0,1.25180155]
[1749459479768,0.5322966,105950.0,105940.0,1.0705931]
[1749459479970,0.6260966,105950.0,105940.0,1.18720155]
[1749459481285,0.6260966,105950.0,105940.0,1.15460155]
[1749459482882,0.6260966,105950.0,105940.0,1.45150155]
[1749459483268,0.6260966,105950.0,105940.0,1.24050451]
[1749459483269,0.8147738,105950.0,105940.0,1.24050451]
[1749459483468,0.6260966,105950.0,105940.0,1.14050451]
[1749459486590,0.8147738,105950.0,105940.0,1.25751764]
[1749459486884,0.6260966,105950.0,105940.0,1.11127693]
[1749459487884,0.8147738,105950.0,105940.0,0.75047693]
[1749459488077,0.93138225,105950.0,105940.0,0.65047693]
[1749459489083,0.8147738,105950.0,105940.0,0.65047693]
[1749459489286,0.85543802,105950.0,105940.0,0.5334638]
[1749459489681,0.8147738,105950.0,105940.0,0.5334638]
[1749459493487,0.8147738,105950.0,105940.0,0.65047693]
[1749459494584,0.8147738,105950.0,105940.0,0.35357693]
[1749459494892,0.5642566,105950.0,105940.0,0.56457397]
[1749459495081,0.5642566,105950.0,105940.0,0.66457397]
[1749459495283,0.5642566,105950.0,105940.0,0.76457397]
[1749459495482,0.5964566,105950.0,105940.0,0.76457397]
[1749459495682,0.5968566,105950.0,105940.0,1.12537397]
[1749459495888,0.5968566,105950.0,105940.0,1.02537397]
[1749459498586,0.0044566,105950.0,105940.0,1.32227397]
[1749459498791,0.5322566,105950.0,105940.0,1.51757397]
[1749459499195,0.5318566,105950.0,105940.0,1.51757397]
[1749459499392,0.5322566,105950.0,105940.0,1.51757397]
[1749459500698,0.5322566,105950.0,105940.0,1.15677397]
[1749459500987,0.5322566,105950.0,105940.0,1.22067397]
[1749459501290,0.5322566,105950.0,105940.0,1.12067397]
[1749459501488,0.5640566,105950.0,105940.0,1.22067397]
[1749459506592,0.5640566,105950.0,105940.0,1.51757397]
[1749459508593,0.5640566,105950.0,105940.0,1.41757397]
[1749459508798,0.5640566,105950.0,105940.0,1.51757397]
[1749459510302,0.5322566,105950.0,105940.0,1.51757397]
[1749459512297,0.5322566,105950.0,105940.0,1.40096552]
[1749459512503,0.5322566,105950.0,105940.0,1.51757397]
[1749459513495,0.5318166,105950.0,105940.0,1.54680155]
[1749459513897,0.0044566,105950.0,105940.0,1.54680155]
[1749459514102,0.5321766,105950.0,105940.0,1.54680155]
[1749459514494,0.5317766,105950.0,105940.0,1.54680155]
[1749459515307,0.5321766,105950.0,105940.0,1.54680155]
[1749459520005,0.5321766,105950.0,105940.0,1.24990155]
[1749459520500,0.0040566,105950.0,105940.0,1.24990155]
[1749459520804,0.5321766,105950.0,105940.0,1.24990155]
[1749459521016,0.5317766,105950.0,105940.0,1.24990155]
[1749459521198,0.5321766,105950.0,105940.0,1.36639202]
[1749459522209,0.0044566,105950.0,105940.0,1.36639202]
[1749459522510,0.5321766,105950.0,105940.0,1.36639202]
[1749459523299,0.5321766,105950.0,105940.0,1.24984633]
[1749459525610,0.1032966,105950.0,105940.0,1.24984633]
[1749459528618,0.0044566,105950.0,105940.0,1.24984633]
[1749459531415,0.0040566,105950.0,105940.0,1.10360562]
[1749459531599,0.0044566,105950.0,105940.0,1.10360562]
[1749459534302,0.0044566,105950.0,105940.0,1.24984633]
[1749459535406,0.0044566,105950.0,105940.0,1.10360562]
[1749459535606,0.0044566,105950.0,105940.0,1.22058834]
[1749459537606,0.0044566,105950.0,105940.0,1.10360562]
[1749459538515,0.0044566,105950.0,105940.0,1.24984633]
[1749459539117,0.0044566,105950.0,105940.0,1.10360562]
[1749459539317,0.0044566,105950.0,105940.0,1.30890133]
[1749459539517,0.0044566,105950.0,105940.0,1.4551341]
[1749459539718,0.0044566,105950.0,105940.0,1.45513412]
[1749459540210,0.0044566,105950.0,105940.0,1.30890133]
[1749459541418,0.0044566,105950.0,105940.0,1.45515072]
[1749459541619,0.0044566,105950.0,105940.0,1.24985501]
[1749459542714,0.0676566,105950.0,105940.0,1.15455501]
[1749459542909,0.0978566,105950.0,105940.0,1.15455501]
[1749459543214,0.0978566,105950.0,105940.0,1.03800178]
[1749459543413,0.0978566,105950.0,105940.0,1.35988498]
[1749459543919,0.0978566,105950.0,105940.0,1.15458927]
[1749459544121,0.0978566,105950.0,105940.0,1.35988498]
[1749459544921,0.0978566,105950.0,105940.0,1.21363559]
[1749459545525,0.0978566,105950.0,105940.0,1.35997145]
[1749459546219,0.6254966,105950.0,105940.0,1.47655894]
[1749459546725,0.6250966,105950.0,105940.0,1.47655894]
[1749459547025,0.6254966,105950.0,105940.0,1.47655894]
[1749459547213,0.6254966,105950.0,105940.0,1.27126323]
[1749459548328,0.6254966,105950.0,105940.0,1.15467574]
[1749459549219,0.74208409,105950.0,105940.0,1.15467574]
[1749459549424,0.74208409,105950.0,105940.0,1.05467574]
[1749459550625,0.6254966,105950.0,105940.0,1.05467574]
[1749459550821,0.6254966,105950.0,105940.0,0.93808825]
[1749459551126,0.93076129,105950.0,105940.0,0.95467574]
[1749459551319,0.74208409,105950.0,105940.0,0.95467574]
[1749459551520,0.6254966,105950.0,105940.0,1.05467574]
[1749459553025,0.74208409,105950.0,105940.0,0.95467574]
[1749459553618,0.93076119,105950.0,105940.0,0.95467574]
[1749459554222,0.74208409,105950.0,105940.0,0.95467574]
[1749459557929,0.74208409,105950.0,105940.0,1.0717205]
[1749459559130,0.74208409,105950.0,105940.0,0.04787]
[1749459559131,1.4658092,105950.0,105940.0,0.04787]
[1749459559431,1.5602012,105950.0,105940.0,0.2365651]
[1749459559632,1.44361371,105950.0,105940.0,0.2365651]
[1749459561229,1.44366221,105950.0,105940.0,0.2365651]
[1749459561927,1.32702622,105950.0,105940.0,0.2365651]
[1749459562133,1.44366221,105950.0,105940.0,0.2365651]
[1749459563934,1.44370221,105950.0,105940.0,0.2365651]
[1749459564639,0.98851021,105950.0,105940.0,0.2365651]
[1749459564833,0.34419422,105950.0,105940.0,0.2365651]
[1749459565033,0.87147422,105950.0,105940.0,0.2365651]
[1749459565233,0.87187422,105950.0,105940.0,0.2365651]
[1749459565632,0.83151198,105950.0,105940.0,0.2365651]
[1749459566738,0.94814797,105950.0,105940.0,0.2365651]
[1749459567041,0.94774797,105950.0,105940.0,0.2365651]
[1749459567242,0.94814797,105950.0,105940.0,0.2365651]
[1749459567736,1.04253997,105950.0,105940.0,0.2365651]
[1749459568638,0.94814797,105950.0,105940.0,0.2365651]
[1749459568845,1.04253997,105950.0,105940.0,0.2365651]
[1749459570035,0.2865339,105950.0,105940.0,0.2365651]
[1749459570239,0.8142139,105950.0,105940.0,0.2365651]
[1749459571353,0.2865339,105950.0,105940.0,0.2365651]
[1749459571641,0.93044989,105950.0,105940.0,0.2365651]
[1749459571846,0.93084989,105950.0,105940.0,0.2365651]
[1749459572048,0.40316989,105950.0,105940.0,0.2365651]
[1749459572248,0.93084989,105950.0,105940.0,0.2365651]
[1749459579348,0.97103851,105950.0,105940.0,0.2365651]
[1749459580039,0.25468121,105950.0,105940.0,0.2365651]
[1749459580245,0.94079851,105950.0,105940.0,0.2365651]
[1749459580449,0.94039851,105950.0,105940.0,0.2365651]
[1749459580637,0.94079851,105950.0,105940.0,0.2365651]
[1749459580935,0.41315851,105950.0,105940.0,0.2365651]
[1749459581137,0.94079851,105950.0,105940.0,0.2365651]
[1749459581343,0.41315851,105950.0,105940.0,0.2365651]
[1749459581644,0.22448121,105950.0,105940.0,0.2365651]
[1749459581845,0.94079851,105950.0,105940.0,0.3302651]
[1749459582743,0.04464522,105950.0,105940.0,0.44690109]
[1749459582950,0.57188522,105950.0,105940.0,0.90208968]
[1749459583152,0.57228522,105950.0,105940.0,0.90208968]
[1749459583953,0.57228522,105950.0,105940.0,0.78545369]
[1749459586554,0.57228522,105950.0,105940.0,1.08235369]
[1749459586954,0.5320966,105950.0,105940.0,1.08235369]
[1749459588451,0.5320966,105950.0,105940.0,1.19939845]
[1749459589153,0.57238457,105950.0,105940.0,1.08235369]
[1749459591152,0.5320966,105950.0,105940.0,1.08235369]
[1749459591346,0.57240142,105950.0,105940.0,1.08235369]
[1749459591747,0.04476142,105950.0,105940.0,1.08235369]
[1749459591947,0.57240142,105950.0,105940.0,1.08235369]
[1749459593255,0.6889857,105950.0,105940.0,1.19893797]
[1749459594358,0.1613457,105950.0,105940.0,1.29893797]
[1749459594659,0.6889457,105950.0,105940.0,1.29893797]
[1749459594858,0.6889457,105950.0,105940.0,1.19893797]
[1749459595158,0.6889457,105950.0,105940.0,1.29893797]
[1749459595962,0.6885457,105950.0,105940.0,1.29893797]
[1749459596261,0.6889457,105950.0,105940.0,1.29893797]
[1749459597548,0.64864088,105950.0,105940.0,1.29893797]
[1749459597751,0.64864088,105950.0,105940.0,1.41598273]
[1749459600259,0.68024088,105950.0,105940.0,1.41598273]
[1749459600758,0.71154088,105950.0,105940.0,1.41598273]
[1749459602363,0.18394088,105950.0,105940.0,1.41598273]
[1749459602765,0.64864088,105950.0,105940.0,1.41598273]
[1749459607571,0.71214088,105950.0,105940.0,1.41598273]
[1749459607767,0.71214088,105950.0,105940.0,1.31598273]
[1749459607963,0.74264088,105950.0,105940.0,1.22228273]
[1749459609371,0.93131818,105950.0,105940.0,0.74489845]
[1749459609567,0.74264088,105950.0,105940.0,0.74489845]
[1749459609871,0.93131808,105950.0,105940.0,0.74489845]
[1749459610875,0.74264088,105950.0,105940.0,0.74489845]
[1749459611977,0.93131818,105950.0,105940.0,0.74489845]
[1749459612277,0.97120872,105950.0,105940.0,0.74489845]
[1749459612979,0.78253142,105950.0,105940.0,0.74489845]
[1749459613571,0.97120862,105950.0,105940.0,0.74489845]
[1749459614379,0.78253142,105950.0,105940.0,0.74489845]
[1749459616888,0.97120872,105950.0,105940.0,0.74489845]
[1749459620402,1.33200872,105950.0,105940.0,0.65050986]
[1749459621796,1.33200872,105950.0,105940.0,0.35360986]
[1749459622603,1.33200872,105950.0,105940.0,0.35260986]
[1749459622793,1.33200872,105950.0,105940.0,0.35160986]
[1749459624402,1.448593,105950.0,105940.0,0.2345651]
[1749459626496,1.33200872,105950.0,105940.0,0.2345651]
[1749459627303,1.448593,105950.0,105940.0,0.2345651]
[1749459627795,1.33200872,105950.0,105940.0,0.2345651]
[1749459627996,1.448593,105950.0,105940.0,0.2345651]
[1749459632003,1.21542444,105950.0,105940.0,0.2345651]
[1749459632307,1.33200872,105950.0,105940.0,0.2345651]
[1749459634704,0.44360872,105950.0,105940.0,0.2345651]
[1749459634907,0.44320872,105950.0,105940.0,0.35114938]
[1749459635205,0.97112872,105950.0,105940.0,0.2345651]
[1749459637107,0.93123818,105950.0,105940.0,0.2345651]
[1749459637404,0.97098819,105950.0,105940.0,0.2345651]
[1749459637707,0.93123818,105950.0,105940.0,0.2345651]
[1749459638108,0.97098988,105950.0,105940.0,0.2345651]
[1749459639007,0.93123818,105950.0,105940.0,0.2345651]
[1749459644814,0.97100052,105950.0,105940.0,0.2345651]
[1749459648314,0.44348052,105950.0,105940.0,0.2345651]
[1749459648514,0.97100052,105950.0,105940.0,0.2345651]
[1749459648813,0.44348052,105950.0,105940.0,0.2345651]
[1749459649018,0.97100052,105950.0,105940.0,0.2345651]
[1749459649405,0.44348052,105950.0,105940.0,0.2345651]
[1749459649709,0.97100052,105950.0,105940.0,0.2345651]